fUST/lending_fUST_20241114
["ID","MTS","AMOUNT","RATE_DAILY","PERIOD"]
[342155620,1731513997106,-809.5642174,0.00018434,2]
[342155621,1731513997128,-500.0,0.00019177,2]
[342155622,1731513997151,-500.0,0.00019177,2]
[342155623,1731513997171,-500.0,0.00019177,2]
[342155624,1731513997192,-187.9034866,0.00019177,2]
[342155625,1731513997213,-300.0,0.00019177,2]
[342155626,1731513997233,-500.0,0.00019178,2]
[342155627,1731513997253,-500.0,0.00019178,2]
[342155628,1731513997273,-500.0,0.00019178,2]
[342155629,1731513997293,-500.0,0.00019178,2]
[342155630,1731513997314,-500.0,0.00019178,2]
[342155631,1731513997337,-500.0,0.00019178,2]
[342155632,1731513997358,-500.0,0.00019178,2]
[342155633,1731513997378,-500.0,0.00019178,2]
[342155634,1731513997401,-500.0,0.00019178,2]
[342155635,1731513997422,-500.0,0.00019178,2]
[342155636,1731513997442,-500.0,0.00019178,2]
[342155637,1731513997463,-500.0,0.00019178,2]
[342155638,1731513997484,-500.0,0.00019178,2]
[342155639,1731513997506,-385.287173,0.00019178,2]
[342155642,1731514025057,159.252467,0.00013973,2]
[342155813,1731514238135,-1644.6046794,0.00018972,2]
[342155815,1731514238144,-977.36991119,0.00018986,2]
[342155817,1731514238154,-114.712827,0.00019178,2]
[342155819,1731514238163,-500.0,0.00019178,2]
[342155821,1731514238173,-1668.7392591,0.0001935,2]
[342155823,1731514238183,-300.0,0.00019449,2]
[342155824,1731514238193,-500.0,0.0001945,2]
[342155826,1731514238204,-500.0,0.0001945,2]
[342155829,1731514238215,-610.70950985,0.0001945,2]
[342155831,1731514238224,-504.98988249,0.0001945,2]
[342155832,1731514238233,-500.0,0.0001945,2]
[342155834,1731514238243,-500.0,0.0001945,2]
[342155836,1731514238252,-513.55120475,0.0001945,2]
[342155838,1731514238262,-505.28365872,0.0001945,2]
[342155840,1731514238271,-500.0,0.0001945,2]
[342155843,1731514238280,-500.0,0.0001945,2]
[342155844,1731514238290,-500.0,0.0001945,2]
[342155846,1731514238300,-500.0,0.0001945,2]
[342155849,1731514238310,-500.0,0.0001945,2]
[342155851,1731514238319,-517.22996926,0.0001945,2]
[342155852,1731514238328,-507.2151862,0.0001945,2]
[342155854,1731514238338,-500.0,0.0001945,2]
[342155856,1731514238347,-508.74285891,0.0001945,2]
[342155858,1731514238357,-507.98304277,0.0001945,2]
[342155860,1731514238366,-433.15598277,0.0001945,2]
[342155861,1731514238379,-511.80131379,0.0001945,2]
[342155863,1731514238388,-500.0,0.0001945,2]
[342155864,1731514238398,-500.0,0.0001945,2]
[342155866,1731514238408,-500.0,0.0001945,2]
[342155868,1731514238417,-505.6390548,0.0001945,2]
[342155870,1731514238427,-505.60535393,0.0001945,2]
[342155872,1731514238437,-506.52438798,0.0001945,2]
[342155874,1731514238447,-604.62642122,0.0001945,2]
[342155876,1731514238456,-506.29940794,0.0001945,2]
[342155878,1731514238466,-500.0,0.0001945,2]
[342155880,1731514238475,-468.48783918,0.0001945,2]
[342155882,1731514238485,-520.15382347,0.0001945,2]
[342155884,1731514238494,-511.44696813,0.0001945,2]
[342155885,1731514238504,-500.0,0.0001945,2]
[342155886,1731514238513,-500.0,0.0001945,2]
[342155887,1731514238523,-500.0,0.0001945,2]
[342155888,1731514238533,-500.0,0.0001945,2]
[342155889,1731514238542,-520.5692285,0.0001945,2]
[342155890,1731514238552,-500.0,0.0001945,2]
[342155891,1731514238562,-200.0,0.0001945,2]
[342155892,1731514238571,-313.72472984,0.0001945,2]
[342155893,1731514238580,-500.0,0.0001945,2]
[342155894,1731514238589,-500.0,0.0001945,2]
[342155895,1731514238599,-500.0,0.0001945,2]
[342155896,1731514238608,-500.0,0.0001945,2]
[342155897,1731514238617,-503.70966425,0.0001945,2]
[342155898,1731514238630,-500.0,0.0001945,2]
[342155899,1731514238639,-500.0,0.0001945,2]
[342155900,1731514238650,-500.0,0.0001945,2]
[342155901,1731514238659,-500.0,0.0001945,2]
[342155902,1731514238669,-500.0,0.0001945,2]
[342155903,1731514238678,-500.0,0.0001945,2]
[342155904,1731514238687,-500.0,0.0001945,2]
[342155905,1731514238697,-500.0,0.0001945,2]
[342155906,1731514238706,-500.0,0.0001945,2]
[342155907,1731514238716,-515.75226096,0.0001945,2]
[342155908,1731514238725,-500.0,0.0001945,2]
[342155909,1731514238734,-500.0,0.0001945,2]
[342155910,1731514238743,-500.0,0.0001945,2]
[342155911,1731514238753,-500.0,0.0001945,2]
[342155912,1731514238762,-435.58682475,0.0001945,2]
[342155913,1731514238772,-500.0,0.0001945,2]
[342155914,1731514238781,-500.0,0.0001945,2]
[342155915,1731514238790,-263.89673906,0.0001945,2]
[342155916,1731514238799,-500.0,0.0001945,2]
[342155917,1731514238809,-544.6843408,0.0001945,2]
[342155918,1731514238818,-649.98924244,0.0001945,2]
[342155919,1731514238827,-500.0,0.0001945,2]
[342155920,1731514238836,-500.0,0.0001945,2]
[342155921,1731514238846,-500.0,0.00019451,2]
[342155922,1731514238855,-500.0,0.00019451,2]
[342155923,1731514238865,-500.0,0.00019451,2]
[342155924,1731514238880,-500.0,0.00019451,2]
[342155925,1731514238889,-500.0,0.00019451,2]
[342155926,1731514238899,-500.0,0.00019451,2]
[342155927,1731514238907,-500.0,0.00019451,2]
[342155928,1731514238917,-500.0,0.00019451,2]
[342155929,1731514238926,-500.0,0.00019451,2]
[342155930,1731514238935,-500.0,0.00019451,2]
[342155931,1731514238945,-500.0,0.00019452,2]
[342155932,1731514238954,-500.0,0.00019452,2]
[342155933,1731514238963,-500.0,0.00019452,2]
[342155934,1731514238972,-500.0,0.00019452,2]
[342155935,1731514238983,-331.42,0.00019723,2]
[342155936,1731514238993,-14.29442655,0.00019723,2]
[342155988,1731514240048,-485.70557345,0.00019723,2]
[342155990,1731514240058,-500.0,0.00019724,2]
[342155992,1731514240068,-500.0,0.00019724,2]
[342155994,1731514240076,-500.0,0.00019724,2]
[342155996,1731514240086,-523.42,0.00019724,2]
[342155999,1731514240096,-500.0,0.00019724,2]
[342156001,1731514240106,-500.0,0.00019724,2]
[342156003,1731514240123,-500.0,0.00019724,2]
[342156004,1731514240135,-500.0,0.00019724,2]
[342156007,1731514240145,-438.20379113,0.00019724,2]
[342156008,1731514240154,-500.0,0.00019725,2]
[342156011,1731514240166,-500.0,0.00019725,2]
[342156013,1731514240175,-531.97,0.00019725,2]
[342156015,1731514240185,-500.0,0.00019725,2]
[342156017,1731514240194,-500.0,0.00019725,2]
[342156019,1731514240205,-500.0,0.00019725,2]
[342156021,1731514240215,-500.0,0.00019726,2]
[342156023,1731514240224,-500.0,0.00019726,2]
[342156024,1731514240233,-264.72119538,0.00019815,2]
[342156026,1731514240242,-528.5,0.00019998,2]
[342156028,1731514240252,-500.0,0.00019998,2]
[342156030,1731514240261,-500.0,0.00019998,2]
[342156032,1731514240272,-340.73,0.00019998,2]
[342156033,1731514240281,-500.0,0.00019999,2]
[342156034,1731514240291,-73.99940086,0.00019999,2]
[342156095,1731514243179,-426.00059914,0.00019999,2]
[342156096,1731514243189,-256.7,0.00019999,2]
[342156097,1731514243199,-393.16105386,0.0002,2]
[342156098,1731514243213,-776.10977947,0.0002,2]
[342156100,1731514243224,-500.0,0.0002,2]
[342156102,1731514243233,-504.34840338,0.0002,2]
[342156104,1731514243243,-500.0,0.00020142,2]
[342156106,1731514243253,-500.0,0.00020272,2]
[342156108,1731514243263,-196.31,0.00020273,2]
[342156110,1731514243273,-500.0,0.00020273,2]
[342156112,1731514243282,-220.52,0.00020273,2]
[342156114,1731514243292,-977.56160772,0.00020373,2]
[342156116,1731514243302,-198.56,0.00020436,3]
[342156118,1731514243312,-595.68,0.00020436,3]
[342156120,1731514243321,-500.0,0.00020445,2]
[342156121,1731514243330,-500.0,0.00020445,2]
[342156122,1731514243339,-153.74371779,0.00020445,2]
[342156123,1731514243349,-500.0,0.00020445,2]
[342156124,1731514243359,-439.14134827,0.00020445,2]
[342156125,1731514243373,-500.0,0.00020445,2]
[342156126,1731514243383,-473.50202934,0.00020445,2]
[342156127,1731514243393,-500.0,0.00020445,2]
[342156128,1731514243403,-500.0,0.00020445,2]
[342156129,1731514243413,-500.0,0.00020445,2]
[342156130,1731514243423,-500.0,0.00020445,2]
[342156131,1731514243433,-500.0,0.00020445,2]
[342156132,1731514243443,-500.0,0.00020445,2]
[342156133,1731514243453,-500.0,0.00020445,2]
[342156134,1731514243462,-500.0,0.00020445,2]
[342156135,1731514243471,-500.0,0.00020445,2]
[342156136,1731514243481,-500.0,0.00020445,2]
[342156137,1731514243491,-500.0,0.00020445,2]
[342156138,1731514243500,-500.0,0.00020445,2]
[342156139,1731514243510,-617.09809504,0.00020445,2]
[342156140,1731514243520,-500.0,0.00020445,2]
[342156141,1731514243529,-500.0,0.00020445,2]
[342156142,1731514243539,-500.0,0.00020445,2]
[342156143,1731514243549,-500.0,0.00020445,2]
[342156144,1731514243559,-500.0,0.00020445,2]
[342156145,1731514243568,-500.0,0.00020445,2]
[342156146,1731514243577,-500.0,0.00020445,2]
[342156147,1731514243587,-500.0,0.00020445,2]
[342156148,1731514243596,-500.0,0.00020445,2]
[342156149,1731514243606,-500.0,0.00020445,2]
[342156150,1731514243615,-620.38137676,0.00020445,2]
[342156151,1731514243629,-500.0,0.00020445,2]
[342156152,1731514243639,-500.0,0.00020445,2]
[342156153,1731514243649,-107979.61286206,0.00020446,2]
[342156154,1731514243661,-3080.339816,0.00020446,2]
[342156155,1731514243673,-9227.9195047,0.00020446,2]
[342156156,1731514243683,-500.0,0.00020473,2]
[342156157,1731514243692,-500.0,0.00020473,2]
[342156158,1731514243702,-500.0,0.00020547,2]
[342156159,1731514243712,-500.0,0.00020821,2]
[342156160,1731514243722,-1668.73925903,0.00020867,2]
[342156161,1731514243731,-5993.01156089,0.000209,2]
[342156162,1731514243743,-6.98843911,0.000209,2]
[342156163,1731514243753,-1000.0,0.00021021,2]
[342156164,1731514243762,-500.0,0.00021095,2]
[342156165,1731514243772,-420.0,0.0002119,2]
[342156166,1731514243782,-500.0,0.00021369,2]
[342156167,1731514243791,-500.0,0.00021473,2]
[342156168,1731514243801,-500.0,0.00021473,2]
[342156169,1731514243810,-208.98280682,0.00021499,2]
[342156170,1731514243820,-306.78912157,0.00021499,2]
[342156171,1731514243830,-188.82168347,0.00021499,2]
[342156172,1731514243839,-190.94030124,0.00021499,2]
[342156173,1731514243849,-178.89423863,0.00021499,2]
[342156174,1731514243858,-266.06738265,0.00021499,2]
[342156175,1731514243868,-35275.68394195,0.000215,2]
[342156176,1731514243888,-4723.55314679,0.000215,2]
[342156177,1731514243900,-82819.02648185,0.000215,2]
[342156203,1731514245971,-411.2999952,0.000215,2]
[342156204,1731514245984,-1371.74,0.000215,2]
[342156223,1731515044992,162.640724,0.00013973,2]
[342156225,1731515082354,-160.0,0.00029,120]
[342156226,1731515082380,-153.133,0.0002916,120]
[342156227,1731515082405,-222.427,0.00029211,120]
[342156228,1731515082503,-313.133,0.00029211,120]
[342156229,1731515082535,-160.0,0.0003,120]
[342156230,1731515082559,-1446.09784643,0.0003,120]
[342156231,1731515082803,-473.133,0.0003,120]
[342156261,1731515240617,-781.55007964,0.0001654,2]
[342156262,1731515240638,-5000.0,0.00016707,2]
[342156263,1731515240658,-279.6028043,0.00016892,2]
[342156264,1731515240678,-1251.4116666,0.00017591,2]
[342156265,1731515240699,-411.083063,0.0001761,2]
[342156266,1731515240722,-300.0,0.00017627,2]
[342156267,1731515240744,-300.0,0.00017627,2]
[342156268,1731515240766,-24900.0,0.00017628,2]
[342156269,1731515240788,-2467.9316136,0.00017672,2]
[342156270,1731515240810,-780.7617632,0.00017863,2]
[342156271,1731515240830,-250.0,0.00017865,2]
[342156272,1731515240855,-203.7669865,0.00017945,2]
[342156273,1731515240878,-170.827428,0.00018287,2]
[342156274,1731515240900,-165.272139,0.00018287,2]
[342156275,1731515240925,-411.083063,0.00018295,2]
[342156276,1731515240946,-165.272139,0.0001831,2]
[342156277,1731515240967,-165.272139,0.00018333,2]
[342156278,1731515240988,-165.272139,0.00018356,2]
[342156279,1731515241009,-165.272139,0.00018379,2]
[342156280,1731515241029,-411.083063,0.0001898,2]
[342156281,1731515241048,-226.428792,0.00019,2]
[342156282,1731515241069,-420.0,0.0001924,2]
[342156283,1731515241089,-420.0,0.0001939,2]
[342156284,1731515241115,-180.41064,0.0001944,2]
[342156285,1731515241135,-1000.23005291,0.00019899,2]
[342156286,1731515241155,-19992.99750693,0.000199,2]
[342156289,1731515307417,6599.66487566,0.000125,2]
[342156299,1731515318848,1620.90208839,0.000134,2]
[342156300,1731515324307,954.63793278,0.0003,120]
[342156301,1731515325480,6117.43822079,0.00029,120]
[342156334,1731515432050,-958.04634142,0.000167,2]
[342156335,1731515432060,-1645.69652218,0.0001881,2]
[342156338,1731515432112,-2900.47847782,0.0001881,2]
[342156339,1731515432122,-226.42879199,0.00019,2]
[342156340,1731515432132,-226.42879199,0.00019,2]
[342156341,1731515432141,-1169.27083333,0.0002,2]
[342156342,1731515432151,-298.755901,0.00020058,2]
[342156343,1731515432161,-703.1294975,0.0002032,2]
[342156344,1731515432171,-397.6515188,0.0002074,2]
[342156345,1731515432180,-500.0,0.00021,2]
[342156346,1731515432190,-300.0,0.00021039,2]
[342156347,1731515432200,-300.0,0.00021039,2]
[342156348,1731515432209,-500.0,0.0002104,2]
[342156349,1731515432218,-302.16310524,0.0002104,2]
[342156350,1731515432228,-10755.89308233,0.000215,2]
[342156351,1731515432245,-5796.26335188,0.000215,2]
[342156352,1731515432255,-1041.97595584,0.000216,2]
[342156353,1731515432264,-2400.34220187,0.0002161,2]
[342156354,1731515432273,-255.38007866,0.0002167,2]
[342156355,1731515432283,-3000.0,0.000217,2]
[342156356,1731515432292,-2305.75035496,0.0002171,2]
[342156357,1731515434841,200.0,0.00027,120]
[342156382,1731515438144,-694.24964504,0.0002171,2]
[342156384,1731515438154,-3000.0,0.0002172,2]
[342156386,1731515438164,-3000.0,0.0002173,2]
[342156387,1731515438173,-3000.0,0.0002174,2]
[342156388,1731515438182,-3000.0,0.0002175,2]
[342156389,1731515438192,-3000.0,0.0002176,2]
[342156390,1731515438201,-3000.0,0.0002177,2]
[342156391,1731515438210,-3000.0,0.0002178,2]
[342156392,1731515438220,-3000.0,0.0002179,2]
[342156393,1731515438229,-3000.0,0.000218,2]
[342156394,1731515438240,-3914.01416198,0.000218,10]
[342156395,1731515438250,-3000.0,0.0002181,2]
[342156396,1731515438259,-3000.0,0.0002182,2]
[342156397,1731515438268,-3000.0,0.0002183,2]
[342156398,1731515438277,-3000.0,0.0002184,2]
[342156399,1731515438286,-500.0,0.00021843,2]
[342156400,1731515438295,-156.86640244,0.00021843,2]
[342156401,1731515438306,-506.73822776,0.00021843,2]
[342156402,1731515438316,-503.58278516,0.00021843,2]
[342156403,1731515438326,-3000.0,0.0002185,2]
[342156404,1731515438335,-3000.0,0.0002186,2]
[342156405,1731515438344,-3000.0,0.0002187,2]
[342156406,1731515438353,-3000.0,0.0002188,2]
[342156407,1731515438362,-3000.0,0.0002189,2]
[342156408,1731515438371,-523.65,0.0002189,3]
[342156409,1731515438380,-1002.84,0.000219,2]
[342156410,1731515438390,-3000.0,0.000219,2]
[342156411,1731515438402,-349.09,0.000219,3]
[342156412,1731515438412,-174.55,0.000219,3]
[342156413,1731515438422,-3000.0,0.0002191,2]
[342156414,1731515438432,-3000.0,0.0002192,2]
[342156415,1731515438442,-3000.0,0.0002193,2]
[342156416,1731515438452,-3000.0,0.0002194,2]
[342156417,1731515438462,-3000.0,0.0002195,2]
[342156418,1731515438599,-3000.0,0.0002196,2]
[342156419,1731515438611,-3000.0,0.0002197,2]
[342156420,1731515438620,-3926.481075,0.0002198,2]
[342156421,1731515438630,-159.0,0.00022,2]
[342156422,1731515438639,-202.0,0.00022,2]
[342156423,1731515438649,-294.0,0.00022,2]
[342156424,1731515438658,-500.0,0.000222,2]
[342156425,1731515438667,-1000.0,0.00022391,2]
[342156426,1731515438677,-2400.34220184,0.00022805,2]
[342156427,1731515438686,-500.0,0.00022833,2]
[342156428,1731515438695,-600.54376901,0.00022833,2]
[342156429,1731515438706,-500.0,0.00022833,2]
[342156430,1731515438715,-420.0,0.00022885,2]
[342156431,1731515438724,-1068.46149114,0.00023,2]
[342156432,1731515438734,-159.0,0.00023014,2]
[342156433,1731515438748,-1041.9759558,0.00023024,2]
[342156434,1731515438758,-167.0,0.00023143,2]
[342156435,1731515438768,-173.931012,0.00023233,2]
[342156436,1731515438779,-241.321973,0.00023233,2]
[342156437,1731515438788,-172.228931,0.00023233,2]
[342156438,1731515438798,-393.370297,0.00023233,2]
[342156439,1731515438807,-206.898964,0.00023233,2]
[342156440,1731515438816,-698.18,0.0002327,3]
[342156441,1731515438825,-349.1,0.0002327,3]
[342156442,1731515438834,-354.19125454,0.00023381,2]
[342156443,1731515438844,-1000.0,0.00023381,2]
[342156444,1731515438853,-255.38007864,0.00023383,2]
[342156445,1731515438862,-500.0,0.00023393,2]
[342156446,1731515438872,-241.321973,0.00023523,2]
[342156447,1731515438882,-393.370297,0.00023523,2]
[342156448,1731515438891,-206.898964,0.00023523,2]
[342156449,1731515438900,-241.321973,0.00023814,2]
[342156450,1731515438910,-393.370297,0.00023814,2]
[342156451,1731515438919,-206.898964,0.00023814,2]
[342156452,1731515438930,-173.931012,0.00023814,2]
[342156453,1731515438939,-178.489282,0.00023836,2]
[342156454,1731515438948,-2007.999999,0.00023852,2]
[342156455,1731515438957,-500.0,0.00024,2]
[342156456,1731515438969,-500.0,0.00024,2]
[342156457,1731515438978,-500.0,0.00024,2]
[342156458,1731515438989,-457.45534389,0.00024,2]
[342156459,1731515438998,-426.36117785,0.00024,2]
[342156460,1731515439008,-2400.34220184,0.00024001,2]
[342156461,1731515439018,-241.321973,0.00024104,2]
[342156462,1731515439027,-393.370297,0.00024104,2]
[342156463,1731515439037,-206.898964,0.00024104,2]
[342156464,1731515439046,-159.0,0.00024164,2]
[342156465,1731515439056,-2500.0,0.00024374,3]
[342156466,1731515439065,-2500.0,0.00024383,3]
[342156467,1731515439075,-504.21390397,0.00024383,2]
[342156468,1731515439084,-241.321973,0.00024395,2]
[342156469,1731515439093,-393.370297,0.00024395,2]
[342156470,1731515439102,-206.898964,0.00024395,2]
[342156471,1731515439111,-173.931012,0.00024395,2]
[342156472,1731515439120,-1041.9759558,0.00024449,2]
[342156473,1731515439130,-631.81302016,0.00024525,2]
[342156474,1731515439139,-311.304,0.00024656,7]
[342156475,1731515439148,-150.0,0.00024658,2]
[342156476,1731515439157,-200.0,0.00024658,15]
[342156477,1731515439166,-500.0,0.00024658,2]
[342156478,1731515439177,-500.0,0.00024658,2]
[342156479,1731515439186,-500.0,0.00024658,2]
[342156480,1731515439195,-599.97942622,0.00024658,2]
[342156481,1731515439204,-500.0,0.00024658,2]
[342156482,1731515439214,-500.0,0.00024658,2]
[342156483,1731515439223,-500.0,0.00024658,2]
[342156484,1731515439232,-500.0,0.00024658,2]
[342156485,1731515439244,-500.0,0.00024658,2]
[342156486,1731515439253,-500.0,0.00024658,2]
[342156487,1731515439263,-500.0,0.00024658,2]
[342156488,1731515439272,-176.95185569,0.00024658,2]
[342156489,1731515439281,-500.0,0.00024658,2]
[342156490,1731515439290,-500.0,0.00024658,2]
[342156491,1731515439299,-500.0,0.00024783,2]
[342156492,1731515439308,-587.0,0.00024893,2]
[342156493,1731515439318,-270.2,0.00025,2]
[342156494,1731515439328,-300.0,0.00025,2]
[342156495,1731515439337,-300.0,0.00025,2]
[342156496,1731515439346,-270.2,0.00025,2]
[342156497,1731515439355,-500.0,0.00025,17]
[342156498,1731515439364,-258.54054735,0.00025073,2]
[342156499,1731515439373,-500.0,0.00025073,2]
[342156500,1731515439383,-500.0,0.00025073,2]
[342156501,1731515439392,-514.67264943,0.00025073,2]
[342156502,1731515439401,-500.0,0.00025073,2]
[342156503,1731515439410,-160.90704509,0.00025073,2]
[342156504,1731515439419,-507.78331983,0.00025073,2]
[342156505,1731515439428,-508.56025957,0.00025073,2]
[342156506,1731515439437,-500.0,0.00025073,2]
[342156507,1731515439447,-530.0,0.00025086,2]
[342156508,1731515439457,-150.0,0.00025086,2]
[342156509,1731515439467,-1117.0,0.00025086,2]
[342156510,1731515439477,-2389.0,0.00025086,2]
[342156511,1731515439488,-61414.22636644,0.0002509,2]
[342156512,1731515439498,-255.38007864,0.00025096,2]
[342156513,1731515439506,-2400.34220184,0.00025196,2]
[342156514,1731515439516,-171.70875,0.00025559,2]
[342156515,1731515439530,-1000.0,0.000256,2]
[342156516,1731515439540,-1000.66773982,0.00025621,2]
[342156518,1731515439550,-508.21334433,0.00025621,2]
[342156520,1731515439559,-511.87876255,0.00025621,2]
[342156521,1731515439570,-202.98424096,0.00025673,2]
[342156522,1731515439579,-463.00798736,0.00025699,2]
[342156523,1731515439588,-203.50275418,0.00025699,2]
[342156524,1731515439600,-190.30938053,0.00025699,2]
[342156525,1731515439609,-205.7695512,0.00025699,2]
[342156526,1731515439618,-424.00871338,0.00025699,2]
[342156527,1731515439627,-105700.98534091,0.000257,2]
[342156528,1731515439637,-300.0,0.000258,2]
[342156529,1731515439646,-1627.2715,0.0002582,2]
[342156530,1731515439655,-179.42775,0.0002582,2]
[342156531,1731515439665,-1041.9759558,0.00025873,2]
[342156532,1731515439674,-153.0,0.00025983,2]
[342156533,1731515439682,-153.0,0.00025983,2]
[342156534,1731515439692,-153.0,0.00025983,2]
[342156535,1731515439701,-153.0,0.00025983,2]
[342156536,1731515439710,-153.0,0.00025983,2]
[342156537,1731515439719,-153.0,0.00025983,2]
[342156538,1731515439728,-153.0,0.00025983,2]
[342156539,1731515439739,-153.0,0.00025983,2]
[342156540,1731515439748,-153.0,0.00025983,2]
[342156541,1731515439757,-153.0,0.00025983,2]
[342156542,1731515439767,-153.0,0.00025983,2]
[342156543,1731515439775,-153.0,0.00025983,2]
[342156544,1731515439784,-300.0,0.00026,2]
[342156545,1731515439793,-151.0,0.00026145,5]
[342156546,1731515439802,-648.0575032,0.00026384,2]
[342156547,1731515439811,-2400.34220184,0.00026392,2]
[342156548,1731515439821,-500.0,0.00026685,7]
[342156549,1731515439830,-300.0,0.000268,2]
[342156550,1731515439840,-151.0,0.00026821,5]
[342156551,1731515439848,-300.0,0.00027,2]
[342156552,1731515439858,-823.0,0.00027077,2]
[342156553,1731515439867,-6000.0,0.00027297,2]
[342156554,1731515439876,-1041.9759558,0.00027297,2]
[342156555,1731515439885,-500.0,0.00027373,2]
[342156556,1731515439894,-500.0,0.00027373,2]
[342156557,1731515439903,-500.0,0.00027373,2]
[342156558,1731515439912,-500.0,0.00027373,2]
[342156559,1731515439922,-500.0,0.00027373,2]
[342156560,1731515439931,-500.0,0.00027373,2]
[342156561,1731515439939,-500.58275861,0.00027373,2]
[342156562,1731515439948,-502.06829217,0.00027397,4]
[342156563,1731515439958,-500.0,0.00027397,4]
[342156564,1731515439967,-596.95317667,0.00027397,4]
[342156565,1731515439976,-500.0,0.00027397,4]
[342156566,1731515439985,-506.48102587,0.00027397,4]
[342156567,1731515439996,-509.87930106,0.00027397,4]
[342156568,1731515440005,-505.24220456,0.00027397,4]
[342156569,1731515440014,-500.0,0.00027397,4]
[342156570,1731515440023,-500.0,0.00027397,4]
[342156571,1731515440033,-568.46551624,0.00027397,4]
[342156572,1731515440044,-500.0,0.00027397,4]
[342156573,1731515440054,-500.0,0.00027397,4]
[342156574,1731515440063,-500.0,0.00027397,4]
[342156575,1731515440073,-502.99696642,0.00027397,4]
[342156576,1731515440082,-509.20318392,0.00027397,4]
[342156577,1731515440093,-501.55836511,0.00027397,4]
[342156578,1731515440102,-501.28140558,0.00027397,4]
[342156579,1731515440112,-502.40569147,0.00027397,4]
[342156580,1731515440121,-500.0,0.00027397,4]
[342156581,1731515440130,-530.39831245,0.00027397,2]
[342156582,1731515440140,-500.0,0.00027397,4]
[342156583,1731515440149,-502.88539083,0.00027397,4]
[342156584,1731515440158,-500.0,0.00027397,4]
[342156585,1731515440167,-504.47257177,0.00027397,4]
[342156586,1731515440177,-613.53931776,0.00027397,4]
[342156587,1731515440186,-500.0,0.00027397,4]
[342156588,1731515440195,-500.0,0.00027397,4]
[342156589,1731515440204,-500.0,0.00027397,4]
[342156590,1731515440213,-500.0,0.00027397,4]
[342156591,1731515440222,-500.0,0.00027397,4]
[342156592,1731515440231,-500.0,0.00027397,4]
[342156593,1731515440243,-500.0,0.00027397,4]
[342156594,1731515440252,-500.0,0.00027397,4]
[342156595,1731515440261,-516.9576808,0.00027397,4]
[342156596,1731515440270,-397.77730588,0.00027397,4]
[342156597,1731515440280,-500.0,0.00027397,4]
[342156598,1731515440289,-500.0,0.00027397,4]
[342156599,1731515440298,-500.0,0.00027397,4]
[342156600,1731515440307,-513.02563402,0.00027397,4]
[342156601,1731515440316,-503.27840803,0.00027397,4]
[342156602,1731515440325,-500.0,0.00027397,4]
[342156603,1731515440334,-500.0,0.00027397,4]
[342156604,1731515440343,-276.96922359,0.00027397,4]
[342156605,1731515440352,-500.0,0.00027397,4]
[342156606,1731515440361,-500.0,0.00027397,4]
[342156607,1731515440370,-576.18002007,0.00027397,4]
[342156608,1731515440379,-500.0,0.00027397,4]
[342156609,1731515440388,-500.0,0.00027397,4]
[342156610,1731515440397,-500.0,0.00027397,4]
[342156611,1731515440406,-482.70214406,0.00027397,4]
[342156612,1731515440415,-500.0,0.00027397,4]
[342156613,1731515440424,-500.0,0.00027397,4]
[342156614,1731515440433,-500.0,0.00027397,4]
[342156615,1731515440442,-500.0,0.00027397,4]